fUSD/lending_fUSD_20250820
["ID","MTS","AMOUNT","RATE_DAILY","PERIOD"]
[380355557,1755700455094,-810.04368058,0.00022,15]
[380355558,1755700455103,-2000.0,0.00022,4]
[380355559,1755700455112,-777.97148356,0.00022,7]
[380355560,1755700455122,-500.75490201,0.00022,2]
[380355561,1755700455131,-647.11459694,0.00022,2]
[380355562,1755700455141,-567.88,0.00022,2]
[380355563,1755700455150,-1489170.51555618,0.00022,7]
[380355564,1755700455651,-630.2367905,0.00022,7]
[380355565,1755700455662,-1557.09999,0.00022,7]
[380355566,1755700455683,-5334.3,0.00022,7]
[380355567,1755700456373,-339.957855,0.00018,2]
[380355568,1755700456383,-151.0,0.00018,2]
[380355569,1755700456392,-151.0,0.0001995,2]
[380355570,1755700456402,-339.957855,0.0001995,2]
[380355571,1755700456411,-151.0,0.0001995,2]
[380355572,1755700456424,-151.0,0.000219,2]
[380355573,1755700456434,-9984.08429,0.00022,7]
[380355574,1755700456445,-597.2922,0.00022,7]
[380355575,1755700456456,-5632.5,0.00022,7]
[380355576,1755700456502,-645.04788305,0.00022,7]
[380355577,1755700456514,-2829.99999,0.00022,7]
[380355578,1755700457159,-358.46930693,0.000108,2]
[380355579,1755700457169,-151.0,0.00018,2]
[380355580,1755700457180,-339.957855,0.00018,2]
[380355581,1755700457190,-297.12514456,0.00018,2]
[380355582,1755700457201,-249.38510644,0.00018,2]
[380355583,1755700457211,-151.0,0.0001995,2]
[380355584,1755700457221,-339.957855,0.0001995,2]
[380355585,1755700457230,-546.510251,0.0001995,2]
[380355586,1755700457240,-151.0,0.000219,2]
[380355587,1755700457250,-339.957855,0.000219,2]
[380355588,1755700457259,-196.773964,0.000219,2]
[380355589,1755700457269,-546.510251,0.000219,2]
[380355590,1755700457278,-339.957855,0.000219,2]
[380355591,1755700457287,-5517.97706201,0.00022,7]
[380355592,1755700457299,-654.65606349,0.00022,7]
[380355593,1755700457312,-1059.57,0.00022,7]
[380355594,1755700457324,-964.81,0.00022,7]
[380355595,1755700457335,-56414.95,0.00022,7]
[380355596,1755700457360,-339.957855,0.00018,2]
[380355597,1755700457369,-2766.342175,0.00022,7]
[380355598,1755700458739,-546.510251,0.00018,2]
[380355599,1755700458748,-546.510251,0.00018,2]
[380355600,1755700458758,-339.957855,0.0001995,2]
[380355601,1755700458768,-546.510251,0.0001995,2]
[380355602,1755700458777,-546.510251,0.0001995,2]
[380355603,1755700458788,-151.0,0.00021899,2]
[380355604,1755700458797,-546.510251,0.000219,2]
[380355605,1755700458808,-14093.51283879,0.00022,7]
[380355606,1755700458828,-546.510251,0.000219,2]
[380355607,1755700458838,-8999.88705609,0.00022,7]
[380355608,1755700459014,-4116.96,0.00022,7]
[380355609,1755700459026,-4033.00105614,0.00022,7]
[380355610,1755700504335,500.0,0.00026979,120]
[380355611,1755700663357,200.0,0.000273,120]
[380355612,1755700725907,170.0,0.00010928,7]
[380355627,1755700997516,417.929605,0.00024938,120]
[380355628,1755700997900,500.0,0.00027038,120]
[380355637,1755701432068,-290.308051,0.00010447,2]
[380355638,1755701432078,-150.0,0.00010972,2]
[380355639,1755701432088,-1200.0,0.00010972,2]
[380355640,1755701432098,-500.0,0.00010973,2]
[380355641,1755701432108,-376.23019821,0.00010973,2]
[380355642,1755701432118,-343.1666302,0.00010973,2]
[380355643,1755701432128,-502.76228858,0.00010973,2]
[380355644,1755701432138,-320.72974999,0.00010973,2]
[380355645,1755701432147,-500.0,0.00010973,2]
[380355646,1755701432157,-500.0,0.00010973,2]
[380355647,1755701432168,-500.12207836,0.00010973,2]
[380355648,1755701432179,-504.02440172,0.00010973,2]
[380355649,1755701432189,-500.0,0.00010973,2]
[380355650,1755701432198,-500.0,0.00010973,2]
[380355651,1755701432207,-500.0,0.00010973,2]
[380355652,1755701432218,-362.88329643,0.00010973,2]
[380355653,1755701432228,-500.0,0.00010973,2]
[380355654,1755701432237,-500.0,0.00010973,2]
[380355655,1755701432249,-500.0,0.00010973,2]
[380355656,1755701432259,-500.0,0.00010973,2]
[380355657,1755701432268,-500.0,0.00010973,2]
[380355659,1755701432278,-500.0,0.00010973,2]
[380355661,1755701432287,-502.42045195,0.00010973,2]
[380355663,1755701432297,-366.60559306,0.00010973,2]
[380355665,1755701432307,-500.0,0.00010973,2]
[380355667,1755701432317,-154.80270839,0.00010973,2]
[380355669,1755701432326,-500.0,0.00010973,2]
[380355671,1755701432335,-327.44063252,0.00010973,2]
[380355673,1755701432346,-4733.75637591,0.0001099,2]
[380355675,1755701432356,-151.0,0.00010993,2]
[380355678,1755701432365,-151.0,0.00010993,2]
[380355679,1755701432375,-151.0,0.00010993,2]
[380355680,1755701432385,-151.0,0.00010993,2]
[380355681,1755701432395,-151.0,0.00010993,2]
[380355682,1755701432406,-151.0,0.00010993,2]
[380355684,1755701432416,-151.0,0.00010993,2]
[380355686,1755701432426,-151.0,0.00010993,2]
[380355687,1755701432436,-151.0,0.00010993,2]
[380355688,1755701432445,-151.0,0.00010993,2]
[380355689,1755701432455,-151.0,0.00010993,2]
[380355690,1755701432465,-151.0,0.00010993,2]
[380355691,1755701432475,-151.0,0.00010993,2]
[380355692,1755701432485,-151.0,0.00010993,2]
[380355693,1755701432494,-151.0,0.00010993,2]
[380355694,1755701432506,-500.0,0.00010993,2]
[380355695,1755701432516,-151.0,0.00010993,2]
[380355696,1755701432525,-500.0,0.00010993,2]
[380355697,1755701432536,-151.0,0.00010993,2]
[380355698,1755701432545,-326.58294387,0.00010993,2]
[380355699,1755701432555,-151.0,0.00010993,2]
[380355700,1755701432565,-151.0,0.00010993,2]
[380355701,1755701432574,-151.0,0.00010993,2]
[380355702,1755701432584,-159.27380131,0.00010999,2]
[380355703,1755701432593,-239.30818908,0.00010999,2]
[380355704,1755701432603,-348.85645174,0.00010999,2]
[380355705,1755701432612,-291.55115445,0.00010999,2]
[380355706,1755701432623,-500.0,0.00010999,2]
[380355707,1755701432632,-577.0066143,0.00010999,2]
[380355708,1755701432642,-8320.97,0.00011,2]
[380355709,1755701432652,-807996.95757015,0.00011,2]
[380355710,1755701432664,-9459.17145165,0.00011,2]
[380355711,1755701432676,-9968.2157501,0.00011,2]
[380355712,1755701432687,-1182.29582589,0.00011,2]
[380355713,1755701432706,-2032.49638822,0.00011,2]
[380355714,1755701432717,-1377.81570734,0.00011,2]
[380355715,1755701432729,-1063.52649688,0.00011,2]
[380355716,1755701432740,-339.66691684,0.00011,2]
[380355717,1755701432757,-312.13489786,0.00011,2]
[380355718,1755701432769,-969.19187044,0.00011,2]
[380355719,1755701432781,-2644.0075588,0.00011,2]
[380355720,1755701432837,-1379.7408,0.00011,2]
[380355721,1755701432849,-3713.03011095,0.00011,2]
[380355722,1755701432861,-1033.63361294,0.00011,2]
[380355723,1755701432872,-592.3,0.00011,2]
[380355724,1755701432891,-8419.92580003,0.00011,2]
[380355725,1755701432902,-767.61830622,0.00011,2]
[380355732,1755701438050,-6343.14395247,0.00011,2]
[380355733,1755701438061,-2004.49561033,0.00011,2]
[380355734,1755701438072,-8937.51464379,0.00011,2]
[380355735,1755701438218,-130157.45998535,0.00011,2]
[380355736,1755701438229,-542.11360314,0.00011099,2]
[380355737,1755701438239,-1238.27,0.000111,2]
[380355738,1755701438249,-2751.0,0.00011507,2]
[380355739,1755701438261,-1000.0,0.00011521,2]
[380355740,1755701438271,-1000.0,0.00011521,2]
[380355742,1755701438281,-1000.0,0.00011521,2]
[380355744,1755701438292,-1000.0,0.00011521,2]
[380355746,1755701438302,-161.71503412,0.00011521,2]
[380355749,1755701438311,-1000.0,0.00011521,2]
[380355751,1755701438320,-500.0,0.00011521,2]
[380355753,1755701438330,-501.21799405,0.00011521,2]
[380355755,1755701438339,-501.08155073,0.00011521,2]
[380355757,1755701438348,-1000.0,0.00011521,2]
[380355759,1755701438358,-621.0,0.000118,2]
[380355761,1755701438367,-996.0,0.00011927,2]
[380355762,1755701438377,-10643.86565226,0.00011982,2]
[380355767,1755701438390,-150.0,0.00012014,2]
[380355769,1755701438400,-1500.0,0.00012068,2]
[380355771,1755701438410,-1500.0,0.00012068,2]
[380355773,1755701438420,-229.50697533,0.00012068,2]
[380355775,1755701438429,-1500.0,0.00012068,2]
[380355777,1755701438439,-1680.0,0.00012069,2]
[380355779,1755701438448,-615.72,0.00012087,2]
[380355781,1755701438458,-542.11360312,0.0001221,2]
[380355783,1755701438468,-1803.55957022,0.00012616,2]
[380355785,1755701438477,-503.89816877,0.00012616,2]
[380355787,1755701438486,-348.85645174,0.00012787,2]
[380355789,1755701438495,-283.0,0.00013001,2]
[380355791,1755701438505,-586.0,0.00013065,2]
[380355793,1755701438515,-1200.0,0.00013276,2]
[380355795,1755701438524,-542.11360312,0.00013421,2]
[380355797,1755701438534,-239.30818906,0.00013633,2]
[380355799,1755701438544,-1000.0,0.00013699,2]
[380355801,1755701438553,-864.38,0.00013704,2]
[380355802,1755701438563,-166.0,0.00013726,3]
[380355804,1755701438573,-250.0,0.00013803,2]
[380355806,1755701438582,-8320.97,0.000139,2]
[380355808,1755701438592,-844.88,0.00013982,2]
[380355811,1755701438602,-495.57,0.00014116,2]
[380355813,1755701438612,-192.21,0.00014145,2]
[380355815,1755701438621,-482.4,0.00014156,2]
[380355817,1755701438631,-250.0,0.00014171,2]
[380355819,1755701438640,-200.0,0.00014192,2]
[380355821,1755701438650,-1000.0,0.00014295,2]
[380355822,1755701438659,-200.0,0.00014351,2]
[380355825,1755701438669,-173.37,0.00014351,2]
[380355826,1755701438678,-3274.05,0.00014504,2]
[380355828,1755701438688,-150.99,0.00014504,2]
[380355830,1755701438697,-163.2,0.00014543,2]
[380355832,1755701438706,-348.85645174,0.00014575,2]
[380355834,1755701438716,-542.11360312,0.00014633,2]
[380355836,1755701438725,-151.0,0.00014755,2]
[380355838,1755701438735,-1636.46,0.00014773,2]
[380355840,1755701438744,-151.0,0.00014782,2]
[380355842,1755701438754,-151.0,0.00014786,2]
[380355844,1755701438766,-250.0,0.00015,2]
[380355846,1755701438775,-1299.41,0.00015172,2]
[380355848,1755701438784,-571.3892501,0.0001518,2]
[380355850,1755701438794,-300.0,0.00015519,2]
[380355853,1755701438804,-542.11360312,0.00015844,2]
[380355855,1755701438814,-482.4,0.00015925,2]
[380355857,1755701438824,-4152.0,0.0001601,2]
[380355859,1755701438833,-21500.0,0.0001601,2]
[380355861,1755701438842,-195.542,0.0001601,2]
[380355862,1755701438851,-195.622,0.0001601,2]
[380355863,1755701438861,-1000.0,0.00016081,2]
[380355864,1755701438870,-239.30818906,0.00016266,2]
[380355865,1755701438880,-212.04014818,0.00016296,2]
[380355866,1755701438889,-160.0,0.00016296,2]
[380355867,1755701438899,-458.46930693,0.00016296,2]
[380355868,1755701438909,-348.85645174,0.00016363,2]
[380355869,1755701438918,-1180.6,0.00016438,2]
[380355870,1755701438928,-666.0,0.00016438,3]
[380355871,1755701438937,-8320.97,0.000167,2]
[380355872,1755701438946,-181.32,0.00016712,2]
[380355873,1755701438955,-300.0,0.00016889,2]
[380355874,1755701438965,-1180.6,0.00016944,2]
[380355875,1755701438975,-300.0,0.00017,2]
[380355876,1755701438984,-542.11360312,0.00017055,2]
[380355877,1755701438993,-151.0,0.00017282,2]
[380355878,1755701439003,-199.24968661,0.00017282,2]
[380355879,1755701439013,-1180.6,0.00017449,2]
[380355880,1755701439023,-482.4,0.00017695,2]
[380355881,1755701439032,-2000.0,0.00017808,2]
[380355882,1755701439041,-2000.0,0.00017808,2]
[380355883,1755701439050,-2000.0,0.00017808,2]
[380355884,1755701439060,-2000.0,0.00017808,2]
[380355885,1755701439070,-183.33333333,0.00017849,2]
[380355886,1755701439080,-1000.0,0.00017868,2]
[380355887,1755701439089,-1180.6,0.00017955,2]
[380355888,1755701439098,-1000.0,0.00017998,3]
[380355889,1755701439108,-1000.0,0.00017998,3]
[380355890,1755701439119,-1000.0,0.00017998,3]
[380355891,1755701439129,-1000.0,0.00017998,3]
[380355892,1755701439138,-1000.0,0.00017998,3]
[380355893,1755701439147,-1000.0,0.00017998,3]
[380355894,1755701439157,-1000.0,0.00017998,3]
[380355895,1755701439167,-1000.0,0.00017998,3]
[380355896,1755701439180,-1000.0,0.00017998,3]
[380355897,1755701439189,-1000.0,0.00017998,3]
[380355898,1755701439199,-1000.0,0.00017998,3]
[380355899,1755701439208,-1000.0,0.00017998,3]
[380355900,1755701439218,-1000.0,0.00017998,3]
[380355901,1755701439227,-202.62114808,0.00017998,3]
[380355902,1755701439237,-458.46930693,0.00017998,3]
[380355903,1755701439247,-212.04014818,0.00017998,3]
[380355904,1755701439261,-2000.0,0.00017999,2]
[380355905,1755701439270,-24441.26382084,0.00018,2]
[380355906,1755701439280,-400.0,0.0001807,2]
[380355907,1755701439289,-159.0,0.000181,2]
[380355908,1755701439300,-348.85645174,0.0001815,2]
[380355909,1755701439309,-542.11360312,0.00018266,2]
[380355910,1755701439318,-3714.82,0.000183,7]
[380355911,1755701439328,-25236.68,0.00018356,2]
[380355912,1755701439338,-1180.6,0.00018461,2]
[380355913,1755701439347,-900.0,0.000185,2]
[380355914,1755701439356,-900.0,0.000185,2]
[380355915,1755701439366,-900.0,0.000185,2]
[380355916,1755701439376,-900.0,0.000185,2]
[380355917,1755701439385,-900.0,0.000185,2]
[380355918,1755701439395,-900.0,0.000185,2]
[380355919,1755701439405,-900.0,0.000185,2]
[380355920,1755701439414,-900.0,0.000185,2]
[380355921,1755701439424,-900.0,0.000185,2]
[380355922,1755701439434,-900.0,0.000185,2]
[380355923,1755701439443,-900.0,0.000185,2]
[380355924,1755701439453,-900.0,0.000185,2]
[380355925,1755701439462,-900.0,0.000185,2]
[380355926,1755701439472,-900.0,0.000185,2]
[380355927,1755701439481,-900.0,0.000185,2]
[380355928,1755701439491,-900.0,0.000185,2]
[380355929,1755701439501,-900.0,0.000185,2]
[380355930,1755701439512,-900.0,0.000185,2]
[380355931,1755701439521,-900.0,0.000185,2]
[380355932,1755701439531,-900.0,0.000185,2]
[380355933,1755701439540,-900.0,0.000185,2]
[380355934,1755701439550,-900.0,0.000185,2]
[380355935,1755701439559,-900.0,0.000185,2]
[380355936,1755701439568,-900.0,0.000185,2]
[380355937,1755701439578,-1100.0,0.00018712,2]
[380355938,1755701439588,-2300.0,0.00018712,2]
[380355939,1755701439598,-800.0,0.00018712,2]
[380355940,1755701439607,-843.97594471,0.00018785,2]
[380355941,1755701439816,-198.12,0.000188,2]
[380355942,1755701439827,-500.0,0.00018877,2]
[380355943,1755701439838,-239.30818906,0.000189,2]
[380355944,1755701439847,-1180.6,0.00018966,2]
[380355945,1755701439857,-350.0,0.00019,2]
[380355946,1755701439867,-2198.348,0.0001901,2]
[380355947,1755701439877,-6718.238,0.0001901,2]
[380355948,1755701439887,-171.67356101,0.00019014,30]
[380355949,1755701439897,-198.12,0.00019141,2]
[380355950,1755701439906,-12228.84,0.00019151,2]
[380355951,1755701439916,-198.12,0.00019168,2]
[380355952,1755701439926,-29708.35,0.00019178,2]
[380355953,1755701439936,-5000.0,0.00019178,2]
[380355954,1755701439945,-3326.26,0.00019178,2]
[380355955,1755701439954,-864.38,0.00019185,2]
[380355956,1755701439963,-171.67356101,0.00019205,30]
[380355957,1755701439974,-8320.97,0.000193,2]
[380355958,1755701439984,-21022.77453159,0.00019342,2]
[380355959,1755701439994,-500.0,0.00019375,2]
[380355960,1755701440003,-171.67356101,0.00019425,30]
[380355961,1755701440015,-1046.0,0.00019442,2]
[380355962,1755701440025,-482.4,0.00019464,2]
[380355963,1755701440035,-1180.6,0.00019472,2]
[380355964,1755701440045,-542.11360312,0.00019478,2]
[380355965,1755701440054,-171.67356101,0.00019616,30]
[380355966,1755701440064,-1000.0,0.00019655,2]
[380355967,1755701440074,-217.0,0.000197,2]
[380355968,1755701440083,-1046.0,0.0001971,2]
[380355969,1755701440092,-150.0,0.00019775,4]
[380355970,1755701440102,-150.0,0.00019775,4]
[380355971,1755701440112,-165.38518678,0.00019775,4]
[380355972,1755701440122,-150.0,0.00019775,4]
[380355973,1755701440131,-150.0,0.00019775,4]
[380355974,1755701440141,-150.0,0.00019775,4]
[380355975,1755701440162,-150.0,0.00019775,4]
[380355976,1755701440173,-150.0,0.00019775,4]
[380355977,1755701440187,-150.56440366,0.00019775,4]
[380355978,1755701440198,-150.0,0.00019775,4]
[380355979,1755701440208,-150.0,0.00019775,4]
[380355980,1755701440219,-150.55682607,0.00019775,4]
[380355981,1755701440230,-150.0,0.00019775,4]
[380355982,1755701440240,-150.0,0.00019775,4]
[380355983,1755701440252,-1100.0,0.00019808,2]
[380355984,1755701440263,-2300.0,0.00019808,2]
[380355985,1755701440274,-800.0,0.00019808,2]
[380355986,1755701440285,-923.85,0.00019863,2]
[380355987,1755701440295,-1046.0,0.0001991,2]
[380355988,1755701440306,-1000.0,0.00019923,2]
[380355989,1755701440316,-348.85645174,0.00019938,2]
[380355990,1755701440326,-198.12,0.00019953,2]
[380355991,1755701440336,-1046.0,0.00019956,2]
[380355992,1755701440347,-1046.0,0.00019963,2]
[380355993,1755701440357,-400.0,0.0001997,2]
[380355994,1755701440368,-400.0,0.0001997,2]
[380355995,1755701440378,-1180.6,0.00019977,2]
[380355997,1755701440389,-165.7,0.0002,2]
[380355999,1755701440398,-200.0,0.0002,2]
[380356001,1755701440408,-2987.0,0.00020055,2]
[380356003,1755701440418,-157.05963202,0.00020057,15]
[380356005,1755701440428,-2987.0,0.00020133,2]
[380356007,1755701440437,-800.0,0.0002015,2]
[380356009,1755701440448,-800.0,0.0002015,2]
[380356012,1755701440458,-800.0,0.0002015,2]
[380356013,1755701440468,-800.0,0.0002015,2]
[380356015,1755701440478,-800.0,0.0002015,2]
[380356016,1755701440488,-800.0,0.0002015,2]
[380356017,1755701440498,-800.0,0.0002015,2]
[380356018,1755701440510,-800.0,0.0002015,2]
[380356019,1755701440520,-800.0,0.0002015,2]
[380356020,1755701440530,-800.0,0.0002015,2]
[380356021,1755701440540,-800.0,0.0002015,2]
[380356022,1755701440550,-800.0,0.0002015,2]
[380356023,1755701440560,-800.0,0.0002015,2]
[380356024,1755701440569,-800.0,0.0002015,2]
[380356025,1755701440579,-800.0,0.0002015,2]
[380356026,1755701440589,-800.0,0.0002015,2]
[380356027,1755701440598,-800.0,0.0002015,2]
[380356028,1755701440608,-800.0,0.0002015,2]
[380356029,1755701440618,-1046.0,0.00020172,2]
[380356030,1755701440628,-1000.0,0.00020187,2]
[380356031,1755701440639,-1046.0,0.00020269,2]
[380356032,1755701440648,-217.0,0.0002027,2]
[380356033,1755701440659,-1046.0,0.00020301,2]
[380356034,1755701440669,-150.0,0.00020325,4]
[380356035,1755701440678,-2987.0,0.00020361,2]
[380356036,1755701440688,-1046.0,0.00020444,2]
[380356037,1755701440698,-1500.0,0.00020471,2]
[380356038,1755701440708,-1180.6,0.00020483,2]
[380356039,1755701440717,-2987.0,0.00020526,2]
[380356040,1755701440726,-150.0,0.00020548,2]
[380356041,1755701440736,-185.86,0.00020548,2]
[380356042,1755701440746,-1046.0,0.00020663,2]
[380356043,1755701440757,-542.11360312,0.00020689,2]
[380356044,1755701440769,-1046.0,0.00020705,2]
[380356045,1755701440779,-1046.0,0.00020802,2]
[380356046,1755701440789,-217.0,0.0002085,2]
[380356047,1755701440799,-1046.0,0.0002086,2]
[380356048,1755701440809,-150.0,0.00020874,4]
[380356049,1755701440819,-150.0,0.00020874,4]
[380356050,1755701440829,-150.0,0.00020874,4]
[380356051,1755701440839,-1100.0,0.00020904,2]
[380356052,1755701440850,-2300.0,0.00020904,2]
[380356053,1755701440860,-800.0,0.00020904,2]
[380356054,1755701440870,-1046.0,0.00020926,2]
[380356055,1755701440880,-198.12,0.00020935,2]
[380356056,1755701440891,-1046.0,0.00020945,2]
[380356057,1755701440900,-1046.0,0.00020983,2]
[380356058,1755701440911,-1180.6,0.00020989,2]
[380356059,1755701440920,-400.0,0.00021,2]
[380356060,1755701440931,-2000.0,0.00021,2]
[380356061,1755701440941,-500.0,0.00021,7]
[380356062,1755701440951,-500.0,0.00021,7]
[380356063,1755701440961,-500.0,0.00021,7]
[380356064,1755701440970,-500.0,0.00021,7]
[380356065,1755701440980,-500.0,0.00021,7]
[380356066,1755701440991,-500.0,0.00021,7]
[380356067,1755701441000,-500.0,0.00021,7]
[380356068,1755701441010,-500.0,0.00021,7]
[380356069,1755701441020,-500.0,0.00021,7]
[380356070,1755701441030,-500.0,0.00021,7]
[380356071,1755701441040,-500.0,0.00021,7]
[380356072,1755701441050,-500.0,0.00021,7]
[380356073,1755701441060,-500.0,0.00021,7]
[380356074,1755701441070,-500.0,0.00021,7]
[380356075,1755701441080,-500.0,0.00021,7]
[380356076,1755701441090,-500.0,0.00021,7]
[380356077,1755701441100,-500.0,0.00021,7]
[380356078,1755701441110,-500.0,0.00021,7]
[380356079,1755701441120,-500.0,0.00021,7]
[380356080,1755701441130,-500.0,0.00021,7]
[380356081,1755701441140,-500.0,0.00021,7]
[380356082,1755701441150,-500.0,0.00021,7]
[380356083,1755701441160,-500.0,0.00021,7]
[380356084,1755701441171,-613.32,0.00021,7]
[380356085,1755701441184,-500.0,0.00021,7]
[380356086,1755701441194,-500.0,0.00021,7]
[380356087,1755701441204,-500.0,0.00021,7]
[380356088,1755701441215,-272.19,0.00021,7]
[380356089,1755701441225,-2000.00004558,0.00021,2]
[380356090,1755701441235,-500.0,0.00021,7]
[380356091,1755701441245,-458.46930693,0.00021,7]
[380356092,1755701441256,-150.0,0.00021,2]
[380356093,1755701441268,-212.04014818,0.00021,7]
[380356094,1755701441278,-2000.0,0.00021019,2]
[380356095,1755701441287,-151.0,0.00021096,2]
[380356096,1755701441297,-8320.97,0.000211,2]
[380356097,1755701441307,-2987.0,0.0002111,2]
[380356098,1755701441318,-1655.0,0.000212,2]
[380356099,1755701441328,-1000.0,0.000212,2]
[380356100,1755701441338,-482.4,0.00021233,2]
[380356101,1755701441348,-1046.0,0.00021246,2]
[380356102,1755701441359,-2987.0,0.0002131,2]
[380356103,1755701441369,-824.95258849,0.00021339,2]
[380356104,1755701441378,-2545.53957219,0.00021344,2]
[380356105,1755701441388,-880.48719884,0.00021373,2]
[380356106,1755701441398,-198.12,0.00021377,2]
[380356107,1755701441408,-2987.0,0.00021387,2]
[380356108,1755701441418,-217.0,0.0002142,2]
[380356109,1755701441428,-216.0,0.0002142,2]
[380356110,1755701441438,-150.0,0.00021423,4]
[380356111,1755701441447,-1000.0,0.00021442,2]
[380356112,1755701441457,-1180.6,0.00021494,2]
[380356113,1755701441466,-1000.0,0.000215,2]
[380356114,1755701441476,-173.37,0.00021527,2]
[380356115,1755701441486,-239.30818906,0.00021533,2]
[380356116,1755701441495,-2500.0,0.00021567,2]
[380356117,1755701441505,-196.38423222,0.00021581,2]
[380356118,1755701441516,-1000.0,0.000216,2]
[380356119,1755701441526,-152.0,0.00021644,2]
[380356120,1755701441536,-500.0,0.00021673,2]
[380356121,1755701441546,-500.0,0.00021673,2]
[380356122,1755701441556,-23549.8518189,0.000217,2]
[380356123,1755701441566,-348.85645174,0.00021726,2]
[380356124,1755701441576,-200.0,0.00021774,2]
[380356125,1755701441586,-2000.0,0.00021814,2]
[380356126,1755701441596,-880.48719884,0.00021814,2]
[380356127,1755701441606,-200.0,0.00021823,2]
[380356128,1755701441615,-500.0,0.00021873,2]
[380356129,1755701441625,-2000.0,0.0002189,2]
[380356130,1755701441634,-198.12,0.0002189,2]
[380356131,1755701441644,-198.12,0.0002189,2]
[380356132,1755701441654,-198.12,0.0002189,2]
[380356133,1755701441663,-198.12,0.0002189,2]
[380356134,1755701441673,-198.12,0.0002189,2]
[380356135,1755701441683,-151.0,0.000219,2]
[380356136,1755701441693,-59388.99,0.000219,2]
[380356137,1755701441702,-542.11360312,0.000219,2]
[380356138,1755701441712,-473.89266648,0.000219,4]
[380356139,1755701441721,-2729.37239614,0.000219,4]
[380356140,1755701441731,-2729.37239614,0.000219,4]
[380356141,1755701441740,-2729.37239614,0.000219,4]
[380356142,1755701441750,-2729.37239614,0.000219,4]
[380356143,1755701441759,-2729.37239614,0.000219,4]
[380356144,1755701441771,-2729.37239614,0.000219,4]
[380356145,1755701441780,-2729.37239614,0.000219,4]
[380356146,1755701441790,-2729.37239614,0.000219,4]
[380356147,1755701441799,-2729.37239614,0.000219,4]
[380356148,1755701441809,-2729.37239614,0.000219,4]
[380356149,1755701441819,-2729.37239614,0.000219,4]
[380356150,1755701441828,-2729.37239614,0.000219,4]
[380356151,1755701441838,-2729.37239614,0.000219,4]
[380356152,1755701441847,-2729.37239614,0.000219,4]
[380356153,1755701441857,-2729.37239614,0.000219,4]
[380356154,1755701441866,-2729.37239614,0.000219,4]
[380356155,1755701441876,-2729.37239614,0.000219,4]
[380356156,1755701441886,-2729.37239614,0.000219,4]
[380356157,1755701441895,-2729.37239614,0.000219,4]
[380356158,1755701441904,-2729.37,0.000219,4]
[380356159,1755701441914,-6368.535591,0.000219,4]
[380356160,1755701441923,-6368.535591,0.000219,4]
[380356161,1755701441933,-6368.535591,0.000219,4]
[380356162,1755701441942,-6368.535591,0.000219,4]
[380356163,1755701441951,-6368.535591,0.000219,4]
[380356164,1755701441961,-6368.535591,0.000219,4]
[380356165,1755701441970,-1762.9025084,0.000219,4]
[380356166,1755701441980,-1762.9025084,0.000219,4]
[380356167,1755701441989,-1762.9025084,0.000219,4]
[380356168,1755701441999,-1762.9025084,0.000219,4]
[380356169,1755701442008,-1762.9025084,0.000219,4]